[Event "Early-Titled-Tuesday-Blitz-February-06-2024"]
[Site "Chess.com"]
[Date "2024.02.06"]
[Round "3"]
[White "SarochaChuemsakul"]
[Black "Goryachkina"]
[Result "0-1"]
[WhiteElo "2454"]
[BlackElo "2675"]
[TimeControl "180+1"]
[EndTime "8:28:08 PST"]
[Termination "Goryachkina won on time"]

1. d4 {[%clk 0:02:50.9]} 1... Nf6 {[%clk 0:02:59.5]} 2. c4 {[%clk 0:02:50.3]}
2... e6 {[%clk 0:02:59.7]} 3. Nf3 {[%clk 0:02:48.9]} 3... d5 {[%clk 0:02:58.9]}
4. cxd5 {[%clk 0:02:48.4]} 4... exd5 {[%clk 0:02:57.6]} 5. Nc3 {[%clk
0:02:48.5]} 5... c6 {[%clk 0:02:56.4]} 6. Bg5 {[%clk 0:02:48.6]} 6... Be7 {[%clk
0:02:51.3]} 7. e3 {[%clk 0:02:48.6]} 7... Bf5 {[%clk 0:02:50.6]} 8. Bd3 {[%clk
0:02:47.2]} 8... Bxd3 {[%clk 0:02:50.4]} 9. Qxd3 {[%clk 0:02:48.1]} 9... Nbd7
{[%clk 0:02:50.6]} 10. O-O {[%clk 0:02:48.3]} 10... O-O {[%clk 0:02:50.4]} 11.
Rab1 {[%clk 0:02:47.1]} 11... a5 {[%clk 0:02:49]} 12. Qc2 {[%clk 0:02:43.3]}
12... Re8 {[%clk 0:02:48.2]} 13. a3 {[%clk 0:02:34.5]} 13... Nb6 {[%clk
0:02:41.7]} 14. Ne5 {[%clk 0:02:33.5]} 14... Nfd7 {[%clk 0:02:41.2]} 15. Bxe7
{[%clk 0:02:32.5]} 15... Qxe7 {[%clk 0:02:41.1]} 16. Nxd7 {[%clk 0:02:33.4]}
16... Qxd7 {[%clk 0:02:41]} 17. a4 {[%clk 0:02:12.5]} 17... Nc4 {[%clk
0:02:39.8]} 18. Qd3 {[%clk 0:01:54.6]} 18... Nd6 {[%clk 0:02:36.3]} 19. b4
{[%clk 0:01:47.8]} 19... axb4 {[%clk 0:02:34.5]} 20. Rxb4 {[%clk 0:01:47.7]}
20... Re7 {[%clk 0:02:33.2]} 21. Rfb1 {[%clk 0:01:47.5]} 21... h5 {[%clk
0:02:30.8]} 22. h3 {[%clk 0:01:47.2]} 22... Qe6 {[%clk 0:02:24.3]} 23. Ne2
{[%clk 0:01:31.1]} 23... g6 {[%clk 0:02:21.1]} 24. Nf4 {[%clk 0:01:30.2]} 24...
Qf6 {[%clk 0:02:21.2]} 25. Qc2 {[%clk 0:01:21.8]} 25... Kg7 {[%clk 0:02:11]} 26.
Nd3 {[%clk 0:01:21.8]} 26... g5 {[%clk 0:01:59.9]} 27. Nc5 {[%clk 0:01:16.7]}
27... Ra7 {[%clk 0:01:58.1]} 28. Qe2 {[%clk 0:00:58.9]} 28... Qg6 {[%clk
0:01:56.9]} 29. Qd3 {[%clk 0:00:52.6]} 29... Qh6 {[%clk 0:01:36.9]} 30. R1b2
{[%clk 0:00:45.5]} 30... g4 {[%clk 0:01:31.9]} 31. hxg4 {[%clk 0:00:34.1]} 31...
hxg4 {[%clk 0:01:31.8]} 32. g3 {[%clk 0:00:28.5]} 32... Ra8 {[%clk 0:01:14.4]}
33. Nxb7 {[%clk 0:00:21.7]} 33... Rh8 {[%clk 0:01:07.5]} 34. Kf1 {[%clk
0:00:20.7]} 34... Qh1+ {[%clk 0:01:04.9]} 35. Ke2 {[%clk 0:00:18.7]} 35... Qf3+
{[%clk 0:01:04.4]} 36. Kd2 {[%clk 0:00:16.1]} 36... Ne4+ {[%clk 0:00:44.5]} 37.
Kc2 {[%clk 0:00:13]} 37... Nxf2 {[%clk 0:00:40.6]} 38. Qa6 {[%clk 0:00:07.7]}
38... Rxe3 {[%clk 0:00:38.7]} 39. Kb1 {[%clk 0:00:07.5]} 39... Nd1 {[%clk
0:00:37.6]} 40. Rc2 {[%clk 0:00:05.1]} 40... Rh1 {[%clk 0:00:31.4]} 41. Ka2
{[%clk 0:00:02.1]} 41... Nc3+ {[%clk 0:00:31]} 42. Rxc3 {[%clk 0:00:02]} 42...
Rxc3 {[%clk 0:00:30.8]} 0-1

[Event "Early-Titled-Tuesday-Blitz-February-06-2024"]
[Site "Chess.com"]
[Date "2024.02.06"]
[Round "3"]
[White "Yaacovn"]
[Black "twofoxniel"]
[Result "1-0"]
[WhiteElo "2831"]
[BlackElo "2621"]
[TimeControl "180+1"]
[EndTime "8:28:11 PST"]
[Termination "Yaacovn won by resignation"]

1. d4 {[%clk 0:03:00.9]} 1... d5 {[%clk 0:02:59.1]} 2. Nf3 {[%clk 0:03:00]} 2...
c6 {[%clk 0:02:59.4]} 3. c4 {[%clk 0:03:00]} 3... Nf6 {[%clk 0:02:59.4]} 4. cxd5
{[%clk 0:03:00.6]} 4... cxd5 {[%clk 0:02:59.3]} 5. Nc3 {[%clk 0:03:01.3]} 5...
Nc6 {[%clk 0:02:58.9]} 6. Bf4 {[%clk 0:03:01.8]} 6... a6 {[%clk 0:02:58.8]} 7.
Ne5 {[%clk 0:03:01.6]} 7... Qb6 {[%clk 0:02:53.3]} 8. Nxc6 {[%clk 0:03:00.8]}
8... bxc6 {[%clk 0:02:52.8]} 9. Qd2 {[%clk 0:03:01.1]} 9... Bf5 {[%clk
0:02:48.9]} 10. e3 {[%clk 0:03:00.5]} 10... e6 {[%clk 0:02:48.5]} 11. a3 {[%clk
0:02:58.8]} 11... Ne4 {[%clk 0:02:46.1]} 12. Nxe4 {[%clk 0:02:58.5]} 12... Bxe4
{[%clk 0:02:47]} 13. Rc1 {[%clk 0:02:55.7]} 13... Be7 {[%clk 0:02:23.5]} 14. Be2
{[%clk 0:02:55.7]} 14... O-O {[%clk 0:02:21.8]} 15. O-O {[%clk 0:02:55.2]} 15...
c5 {[%clk 0:02:21.9]} 16. dxc5 {[%clk 0:02:54.7]} 16... Bxc5 {[%clk 0:02:21.9]}
17. b4 {[%clk 0:02:54.8]} 17... Bd6 {[%clk 0:02:21.1]} 18. Bxd6 {[%clk
0:02:54.6]} 18... Qxd6 {[%clk 0:02:22]} 19. Rc5 {[%clk 0:02:43]} 19... a5 {[%clk
0:02:21.3]} 20. Rxa5 {[%clk 0:02:33.1]} 20... Rxa5 {[%clk 0:02:20.8]} 21. bxa5
{[%clk 0:02:33.6]} 21... Qxa3 {[%clk 0:02:21.7]} 22. a6 {[%clk 0:02:31.2]} 22...
Rc8 {[%clk 0:02:07]} 23. Qd4 {[%clk 0:01:57.3]} 23... h6 {[%clk 0:01:43.5]} 24.
h3 {[%clk 0:01:49.2]} 24... Rc2 {[%clk 0:01:39.8]} 25. Ra1 {[%clk 0:01:44.3]}
25... Rc1+ {[%clk 0:01:04.2]} 26. Rxc1 {[%clk 0:01:42.9]} 26... Qxc1+ {[%clk
0:01:05.1]} 27. Qd1 {[%clk 0:01:30.9]} 27... Qa3 {[%clk 0:01:01.8]} 28. Bf1
{[%clk 0:01:22.8]} 28... e5 {[%clk 0:01:00.7]} 29. Qe2 {[%clk 0:01:18.8]} 29...
Qa1 {[%clk 0:00:49.5]} 30. Qb5 {[%clk 0:01:16.8]} 30... Kh7 {[%clk 0:00:47.4]}
31. Kh2 {[%clk 0:01:03.2]} 31... Bf5 {[%clk 0:00:36.3]} 32. Bd3 {[%clk
0:00:55.4]} 32... Bxd3 {[%clk 0:00:30.8]} 33. Qxd3+ {[%clk 0:00:55]} 33... e4
{[%clk 0:00:30.7]} 34. Qb5 {[%clk 0:00:37.5]} 34... Qe5+ {[%clk 0:00:26.2]} 35.
g3 {[%clk 0:00:36.8]} 35... Qf6 {[%clk 0:00:25.1]} 36. Kg1 {[%clk 0:00:33.7]}
36... Qa1+ {[%clk 0:00:23.9]} 37. Kg2 {[%clk 0:00:33.2]} 37... Qf6 {[%clk
0:00:24]} 38. Qa4 {[%clk 0:00:27.1]} 38... Qf3+ {[%clk 0:00:20.2]} 39. Kg1
{[%clk 0:00:27]} 39... d4 {[%clk 0:00:20.1]} 40. Qxd4 {[%clk 0:00:25.5]} 40...
Qe2 {[%clk 0:00:13.1]} 41. a7 {[%clk 0:00:23.3]} 41... Qe1+ {[%clk 0:00:12.5]}
42. Kg2 {[%clk 0:00:23.5]} 42... Qa5 {[%clk 0:00:12.9]} 43. Qxe4+ {[%clk
0:00:19.9]} 43... f5 {[%clk 0:00:13.1]} 44. Qb7 {[%clk 0:00:18.2]} 1-0

[Event "Early-Titled-Tuesday-Blitz-February-06-2024"]
[Site "Chess.com"]
[Date "2024.02.06"]
[Round "3"]
[White "Yan_Dyomin2010"]
[Black "RobertoJBM"]
[Result "0-1"]
[WhiteElo "2593"]
[BlackElo "2816"]
[TimeControl "180+1"]
[EndTime "8:28:11 PST"]
[Termination "RobertoJBM won by checkmate"]

1. e4 {[%clk 0:02:58.9]} 1... c6 {[%clk 0:02:57.8]} 2. d4 {[%clk 0:02:57.9]}
2... d5 {[%clk 0:02:57.4]} 3. e5 {[%clk 0:02:58]} 3... Bf5 {[%clk 0:02:55.3]} 4.
Nf3 {[%clk 0:02:57.1]} 4... e6 {[%clk 0:02:54.3]} 5. Be2 {[%clk 0:02:57.1]} 5...
Nd7 {[%clk 0:02:53.8]} 6. O-O {[%clk 0:02:56.2]} 6... Bg6 {[%clk 0:02:53.4]} 7.
Nbd2 {[%clk 0:02:55.5]} 7... Nh6 {[%clk 0:02:53.1]} 8. Re1 {[%clk 0:02:52.3]}
8... Nf5 {[%clk 0:02:52.3]} 9. Nf1 {[%clk 0:02:51.7]} 9... Be7 {[%clk
0:02:49.1]} 10. Bd3 {[%clk 0:02:47.1]} 10... O-O {[%clk 0:02:47.9]} 11. Ng3
{[%clk 0:02:46.4]} 11... Nxg3 {[%clk 0:02:40.1]} 12. Bxg6 {[%clk 0:02:47.3]}
12... fxg6 {[%clk 0:02:36]} 13. hxg3 {[%clk 0:02:46.5]} 13... c5 {[%clk
0:02:34]} 14. c3 {[%clk 0:02:44.5]} 14... Rc8 {[%clk 0:02:28.2]} 15. Qd3 {[%clk
0:02:39.2]} 15... c4 {[%clk 0:02:24.1]} 16. Qe2 {[%clk 0:02:32.5]} 16... h6
{[%clk 0:02:18.6]} 17. Qc2 {[%clk 0:02:29.9]} 17... Qe8 {[%clk 0:02:15]} 18. Be3
{[%clk 0:02:21.4]} 18... b5 {[%clk 0:02:12]} 19. b4 {[%clk 0:02:00.8]} 19... Nb6
{[%clk 0:02:03.2]} 20. g4 {[%clk 0:01:31]} 20... g5 {[%clk 0:01:58.7]} 21. Nh2
{[%clk 0:01:25.6]} 21... Ra8 {[%clk 0:01:54.1]} 22. Nf1 {[%clk 0:01:22.3]} 22...
a5 {[%clk 0:01:49.8]} 23. a3 {[%clk 0:01:20.7]} 23... Qf7 {[%clk 0:01:44.3]} 24.
Reb1 {[%clk 0:01:13.9]} 24... Ra7 {[%clk 0:01:36.1]} 25. Ng3 {[%clk 0:00:43.1]}
25... g6 {[%clk 0:01:30.6]} 26. Rf1 {[%clk 0:00:38.4]} 26... Kg7 {[%clk
0:01:25.9]} 27. f4 {[%clk 0:00:36]} 27... gxf4 {[%clk 0:01:18.9]} 28. Rxf4
{[%clk 0:00:35]} 28... Qe8 {[%clk 0:01:11.7]} 29. Raf1 {[%clk 0:00:34.2]} 29...
Bg5 {[%clk 0:01:01.2]} 30. Rxf8 {[%clk 0:00:20.8]} 30... Bxe3+ {[%clk
0:01:00.1]} 31. R8f2 {[%clk 0:00:20.1]} 31... axb4 {[%clk 0:00:57.1]} 32. axb4
{[%clk 0:00:19.5]} 32... Rf7 {[%clk 0:00:55.3]} 33. Kh2 {[%clk 0:00:19.3]} 33...
Bxf2 {[%clk 0:00:53.3]} 34. Rxf2 {[%clk 0:00:20.2]} 34... Rxf2 {[%clk 0:00:51]}
35. Qxf2 {[%clk 0:00:21.1]} 35... Qf7 {[%clk 0:00:51.6]} 36. Qxf7+ {[%clk
0:00:21.1]} 36... Kxf7 {[%clk 0:00:52.5]} 37. Ne2 {[%clk 0:00:21.5]} 37... Na4
{[%clk 0:00:50]} 38. Kg3 {[%clk 0:00:21.9]} 38... Nb2 {[%clk 0:00:49]} 39. Kf4
{[%clk 0:00:21]} 39... Nd1 {[%clk 0:00:47.7]} 40. Kf3 {[%clk 0:00:20.4]} 40...
g5 {[%clk 0:00:45.7]} 41. Kg3 {[%clk 0:00:20.2]} 41... Kg6 {[%clk 0:00:45.2]}
42. Kf3 {[%clk 0:00:20.5]} 42... Kg7 {[%clk 0:00:43.7]} 43. Kg3 {[%clk
0:00:20.5]} 43... Kh7 {[%clk 0:00:44.2]} 44. Kf3 {[%clk 0:00:20.9]} 44... Kg6
{[%clk 0:00:44.8]} 45. Kg3 {[%clk 0:00:21.6]} 45... h5 {[%clk 0:00:39.4]} 46.
Kh3 {[%clk 0:00:20.4]} 46... Nf2+ {[%clk 0:00:38]} 47. Kg3 {[%clk 0:00:20.1]}
47... Nxg4 {[%clk 0:00:38.5]} 48. Kf3 {[%clk 0:00:20.9]} 48... Nh6 {[%clk
0:00:38]} 49. Kg3 {[%clk 0:00:19]} 49... Nf5+ {[%clk 0:00:38.3]} 50. Kf3 {[%clk
0:00:19.6]} 50... g4+ {[%clk 0:00:34.9]} 51. Kf4 {[%clk 0:00:19.9]} 51... Nh4
{[%clk 0:00:33.1]} 52. g3 {[%clk 0:00:18.9]} 52... Ng2# {[%clk 0:00:16.3]} 0-1

[Event "Early-Titled-Tuesday-Blitz-February-06-2024"]
[Site "Chess.com"]
[Date "2024.02.06"]
[Round "3"]
[White "deribas12345"]
[Black "Harsha_Bharathakoti"]
[Result "0-1"]
[WhiteElo "2507"]
[BlackElo "2924"]
[TimeControl "180+1"]
[EndTime "8:28:11 PST"]
[Termination "Harsha_Bharathakoti won by resignation"]

1. d4 {[%clk 0:03:00.9]} 1... d5 {[%clk 0:03:00.1]} 2. c4 {[%clk 0:03:00.7]}
2... e6 {[%clk 0:03:00.8]} 3. Nc3 {[%clk 0:03:00.8]} 3... a6 {[%clk 0:03:01.5]}
4. cxd5 {[%clk 0:02:58]} 4... exd5 {[%clk 0:03:02.4]} 5. e4 {[%clk 0:02:57.6]}
5... dxe4 {[%clk 0:03:02.4]} 6. Nxe4 {[%clk 0:02:58.5]} 6... Be7 {[%clk
0:03:03]} 7. Nf3 {[%clk 0:02:57.9]} 7... Nf6 {[%clk 0:03:03.8]} 8. Nc3 {[%clk
0:02:53]} 8... O-O {[%clk 0:03:03.2]} 9. Be2 {[%clk 0:02:53.4]} 9... Bg4 {[%clk
0:02:49.6]} 10. h3 {[%clk 0:02:51.9]} 10... Bh5 {[%clk 0:02:49.3]} 11. O-O
{[%clk 0:02:50]} 11... Nbd7 {[%clk 0:02:49.2]} 12. Ne5 {[%clk 0:02:41.8]} 12...
Bxe2 {[%clk 0:02:48.6]} 13. Qxe2 {[%clk 0:02:42.7]} 13... Nb6 {[%clk 0:02:45.5]}
14. Rd1 {[%clk 0:02:17.1]} 14... Re8 {[%clk 0:02:33.3]} 15. Qf3 {[%clk 0:02:13]}
15... Nbd5 {[%clk 0:02:32.4]} 16. Bg5 {[%clk 0:02:10.4]} 16... c6 {[%clk
0:02:31]} 17. Bxf6 {[%clk 0:02:04.8]} 17... Bxf6 {[%clk 0:02:20.1]} 18. Nxd5
{[%clk 0:02:04]} 18... cxd5 {[%clk 0:02:14.1]} 19. Rac1 {[%clk 0:01:39.2]} 19...
Qd6 {[%clk 0:01:31]} 20. Ng4 {[%clk 0:01:16.7]} 20... Bg5 {[%clk 0:01:31.5]} 21.
Rc5 {[%clk 0:01:13.3]} 21... Rad8 {[%clk 0:01:32.1]} 22. Rc3 {[%clk 0:00:55.8]}
22... h5 {[%clk 0:01:19]} 23. Ne5 {[%clk 0:00:51.4]} 23... Bf6 {[%clk
0:01:10.6]} 24. Qxh5 {[%clk 0:00:47.1]} 24... Bxe5 {[%clk 0:01:11.1]} 25. dxe5
{[%clk 0:00:47.4]} 25... Rxe5 {[%clk 0:01:12]} 26. Qg4 {[%clk 0:00:40]} 26...
Rde8 {[%clk 0:00:54.6]} 27. Rg3 {[%clk 0:00:37.7]} 27... g6 {[%clk 0:00:51.9]}
28. h4 {[%clk 0:00:37.8]} 28... Re1+ {[%clk 0:00:44.6]} 29. Rxe1 {[%clk
0:00:37.1]} 29... Rxe1+ {[%clk 0:00:45.5]} 30. Kh2 {[%clk 0:00:37.6]} 30... Re4
{[%clk 0:00:46]} 31. Qc8+ {[%clk 0:00:36.4]} 31... Kg7 {[%clk 0:00:44.1]} 32.
Qxb7 {[%clk 0:00:33.1]} 32... Rxh4+ {[%clk 0:00:41.7]} 33. Kg1 {[%clk
0:00:33.3]} 33... Rb4 {[%clk 0:00:37.8]} 34. Qc8 {[%clk 0:00:25.2]} 34... Rxb2
{[%clk 0:00:37.4]} 35. Qc3+ {[%clk 0:00:10.1]} 35... Qf6 {[%clk 0:00:37.7]} 36.
Qxf6+ {[%clk 0:00:08.6]} 36... Kxf6 {[%clk 0:00:38.6]} 37. Ra3 {[%clk
0:00:08.9]} 37... Rb1+ {[%clk 0:00:33]} 38. Kh2 {[%clk 0:00:08.9]} 38... Rb6
{[%clk 0:00:33.9]} 39. Kg3 {[%clk 0:00:09.2]} 39... Ke5 {[%clk 0:00:34.3]} 40.
Kg4 {[%clk 0:00:09.2]} 40... Ke4 {[%clk 0:00:31.1]} 41. f3+ {[%clk 0:00:07.6]}
41... Kd4 {[%clk 0:00:28.8]} 42. Kf4 {[%clk 0:00:07.6]} 42... Kc4 {[%clk
0:00:26.8]} 43. g4 {[%clk 0:00:05.3]} 43... d4 {[%clk 0:00:27.1]} 44. Ke5 {[%clk
0:00:03]} 44... Re6+ {[%clk 0:00:27.3]} 45. Kf4 {[%clk 0:00:03.3]} 45... d3
{[%clk 0:00:28.2]} 46. Ra4+ {[%clk 0:00:03.1]} 46... Kc3 {[%clk 0:00:28.9]} 47.
Ra5 {[%clk 0:00:03]} 47... d2 {[%clk 0:00:29.1]} 48. Rc5+ {[%clk 0:00:03.1]}
48... Kd4 {[%clk 0:00:29.3]} 49. Rc8 {[%clk 0:00:02.1]} 49... Rd6 {[%clk
0:00:29.3]} 0-1

[Event "Early-Titled-Tuesday-Blitz-February-06-2024"]
[Site "Chess.com"]
[Date "2024.02.06"]
[Round "3"]
[White "Adekrisna123"]
[Black "Ati1517"]
[Result "1-0"]
[WhiteElo "2536"]
[BlackElo "2251"]
[TimeControl "180+1"]
[EndTime "8:28:11 PST"]
[Termination "Adekrisna123 won by resignation"]

1. d4 {[%clk 0:03:00.9]} 1... Nf6 {[%clk 0:02:55.8]} 2. Bf4 {[%clk 0:03:00.6]}
2... g6 {[%clk 0:02:55.3]} 3. Nc3 {[%clk 0:02:59.6]} 3... Bg7 {[%clk 0:02:55.8]}
4. e4 {[%clk 0:02:59.3]} 4... d6 {[%clk 0:02:55.2]} 5. Qd2 {[%clk 0:02:59.4]}
5... Nbd7 {[%clk 0:02:54.2]} 6. O-O-O {[%clk 0:02:58.1]} 6... O-O {[%clk
0:02:52.3]} 7. Bh6 {[%clk 0:02:56.1]} 7... c6 {[%clk 0:02:52.3]} 8. h4 {[%clk
0:02:54.7]} 8... b5 {[%clk 0:02:52.4]} 9. h5 {[%clk 0:02:50.2]} 9... b4 {[%clk
0:02:48.6]} 10. Bxg7 {[%clk 0:02:49.9]} 10... bxc3 {[%clk 0:02:46.4]} 11. Qh6
{[%clk 0:02:50.4]} 11... Ng4 {[%clk 0:02:39.7]} 12. Qf4 {[%clk 0:02:39.9]} 12...
Kxg7 {[%clk 0:02:39.5]} 13. Qxg4 {[%clk 0:02:33.9]} 13... cxb2+ {[%clk
0:02:39.9]} 14. Kb1 {[%clk 0:02:33.6]} 14... Nf6 {[%clk 0:02:38.1]} 15. Qh4
{[%clk 0:02:29.7]} 15... Be6 {[%clk 0:02:09.6]} 16. d5 {[%clk 0:02:03.3]} 16...
cxd5 {[%clk 0:02:05]} 17. exd5 {[%clk 0:01:54.1]} 17... Bf5 {[%clk 0:01:56.6]}
18. Bd3 {[%clk 0:01:37]} 18... Bxd3 {[%clk 0:01:23.7]} 19. Rxd3 {[%clk
0:01:37.9]} 19... Qa5 {[%clk 0:01:21.4]} 20. Ne2 {[%clk 0:01:32.6]} 20... Rfc8
{[%clk 0:01:13.9]} 21. hxg6 {[%clk 0:01:21.2]} 21... fxg6 {[%clk 0:01:13]} 22.
Re3 {[%clk 0:00:21.6]} 22... Qc7 {[%clk 0:00:22.2]} 23. Nd4 {[%clk 0:00:21.1]}
23... Kg8 {[%clk 0:00:19.8]} 24. Rb3 {[%clk 0:00:15.8]} 24... Rab8 {[%clk
0:00:17.6]} 25. Qh3 {[%clk 0:00:12.8]} 25... Rxb3 {[%clk 0:00:17]} 26. axb3
{[%clk 0:00:10.6]} 26... e5 {[%clk 0:00:14.2]} 27. dxe6 {[%clk 0:00:09.3]} 27...
Nd5 {[%clk 0:00:13.4]} 28. Kxb2 {[%clk 0:00:07.8]} 28... Qc3+ {[%clk 0:00:11.7]}
29. Qxc3 {[%clk 0:00:07.6]} 29... Nxc3 {[%clk 0:00:09.2]} 30. e7 {[%clk
0:00:04]} 30... Nd5 {[%clk 0:00:09.1]} 31. Re1 {[%clk 0:00:04]} 31... Kf7 {[%clk
0:00:09]} 32. Nb5 {[%clk 0:00:04.7]} 32... Nc7 {[%clk 0:00:04.9]} 33. Nxc7
{[%clk 0:00:03.8]} 33... Rxc7 {[%clk 0:00:04.8]} 34. e8=Q+ {[%clk 0:00:04.2]}
1-0

[Event "Early-Titled-Tuesday-Blitz-February-06-2024"]
[Site "Chess.com"]
[Date "2024.02.06"]
[Round "3"]
[White "Chemim21"]
[Black "Pingah9"]
[Result "1/2-1/2"]
[WhiteElo "2236"]
[BlackElo "2527"]
[TimeControl "180+1"]
[EndTime "8:28:11 PST"]
[Termination "Game drawn - insufficient material"]

1. e4 {[%clk 0:03:00.9]} 1... c5 {[%clk 0:02:47.9]} 2. Nf3 {[%clk 0:03:00.7]}
2... e6 {[%clk 0:02:47.8]} 3. Nc3 {[%clk 0:02:58.5]} 3... a6 {[%clk 0:02:45.4]}
4. a4 {[%clk 0:02:57.6]} 4... Nc6 {[%clk 0:02:44.5]} 5. d3 {[%clk 0:02:55.8]}
5... d5 {[%clk 0:02:43.1]} 6. g3 {[%clk 0:02:54.5]} 6... Nf6 {[%clk 0:02:41.8]}
7. Bg2 {[%clk 0:02:54.4]} 7... dxe4 {[%clk 0:02:41.1]} 8. Nxe4 {[%clk
0:02:53.4]} 8... Nxe4 {[%clk 0:02:40.5]} 9. dxe4 {[%clk 0:02:54.3]} 9... Qxd1+
{[%clk 0:02:40.6]} 10. Kxd1 {[%clk 0:02:54.9]} 10... e5 {[%clk 0:02:39]} 11. c3
{[%clk 0:02:53.4]} 11... Be6 {[%clk 0:02:36.2]} 12. Kc2 {[%clk 0:02:51.3]} 12...
f6 {[%clk 0:02:36]} 13. Be3 {[%clk 0:02:47.7]} 13... O-O-O {[%clk 0:02:32.4]}
14. Nd2 {[%clk 0:02:46.3]} 14... b6 {[%clk 0:02:14.9]} 15. h4 {[%clk 0:02:45.5]}
15... Kc7 {[%clk 0:02:11.6]} 16. Bf1 {[%clk 0:02:40]} 16... a5 {[%clk
0:02:06.7]} 17. Nc4 {[%clk 0:02:30.3]} 17... Be7 {[%clk 0:01:53.6]} 18. Na3
{[%clk 0:02:30]} 18... Kb7 {[%clk 0:01:45.2]} 19. f3 {[%clk 0:02:24.8]} 19... h5
{[%clk 0:01:42.7]} 20. Bc4 {[%clk 0:02:20.6]} 20... Bxc4 {[%clk 0:01:30.3]} 21.
Nxc4 {[%clk 0:02:21.5]} 21... Rc8 {[%clk 0:01:29.3]} 22. Rad1 {[%clk 0:02:15.2]}
22... Nd4+ {[%clk 0:01:04.8]} 23. cxd4 {[%clk 0:02:03.1]} 23... cxd4 {[%clk
0:01:05.7]} 24. Kb3 {[%clk 0:01:55.2]} 24... dxe3 {[%clk 0:01:05.2]} 25. Rd7+
{[%clk 0:01:45.3]} 25... Rc7 {[%clk 0:01:05.2]} 26. Rxc7+ {[%clk 0:01:44.9]}
26... Kxc7 {[%clk 0:01:06.1]} 27. Nxe3 {[%clk 0:01:44.1]} 27... Bc5 {[%clk
0:01:05.3]} 28. Nd5+ {[%clk 0:01:44]} 28... Kb7 {[%clk 0:01:05.8]} 29. g4 {[%clk
0:01:44.1]} 29... hxg4 {[%clk 0:00:55.2]} 30. fxg4 {[%clk 0:01:43.4]} 30... Bf2
{[%clk 0:00:55.2]} 31. h5 {[%clk 0:01:43]} 31... Bd4 {[%clk 0:00:53.4]} 32. Ne7
{[%clk 0:01:35.5]} 32... Rd8 {[%clk 0:00:48.1]} 33. Nf5 {[%clk 0:01:30.8]} 33...
Rd7 {[%clk 0:00:48.2]} 34. h6 {[%clk 0:01:29.8]} 34... gxh6 {[%clk 0:00:43.3]}
35. Rxh6 {[%clk 0:01:30.3]} 35... Bc5 {[%clk 0:00:40.1]} 36. Rxf6 {[%clk
0:01:27.7]} 36... Rd3+ {[%clk 0:00:40.1]} 37. Kc4 {[%clk 0:01:23.9]} 37... Rd2
{[%clk 0:00:39]} 38. b3 {[%clk 0:01:20.6]} 38... Rg2 {[%clk 0:00:34.8]} 39. Rg6
{[%clk 0:01:13]} 39... Re2 {[%clk 0:00:33.3]} 40. Rg7+ {[%clk 0:01:06.7]} 40...
Ka6 {[%clk 0:00:33.1]} 41. Kd5 {[%clk 0:01:03.8]} 41... Rb2 {[%clk 0:00:33.8]}
42. Kxe5 {[%clk 0:01:01.7]} 42... Rxb3 {[%clk 0:00:34.1]} 43. Kd5 {[%clk
0:00:59.6]} 43... Rb4 {[%clk 0:00:33.8]} 44. e5 {[%clk 0:00:59.7]} 44... Rxa4
{[%clk 0:00:34.3]} 45. e6 {[%clk 0:01:00]} 45... Ra1 {[%clk 0:00:34.2]} 46. e7
{[%clk 0:01:00.1]} 46... Re1 {[%clk 0:00:31.2]} 47. g5 {[%clk 0:00:56.6]} 47...
a4 {[%clk 0:00:31.5]} 48. g6 {[%clk 0:00:56.6]} 48... a3 {[%clk 0:00:31.8]} 49.
Rg8 {[%clk 0:00:56.6]} 49... Bxe7 {[%clk 0:00:19.4]} 50. Nxe7 {[%clk 0:00:55.8]}
50... Rxe7 {[%clk 0:00:18.9]} 51. Ra8+ {[%clk 0:00:55.3]} 51... Kb7 {[%clk
0:00:17.4]} 52. Rxa3 {[%clk 0:00:56.2]} 52... Rg7 {[%clk 0:00:14.7]} 53. Rg3
{[%clk 0:00:56.6]} 53... Ka6 {[%clk 0:00:14.7]} 54. Ke6 {[%clk 0:00:57.4]} 54...
b5 {[%clk 0:00:14.6]} 55. Kf6 {[%clk 0:00:58.3]} 55... Rg8 {[%clk 0:00:14.7]}
56. g7 {[%clk 0:00:58.7]} 56... b4 {[%clk 0:00:14.6]} 57. Kf7 {[%clk 0:00:59.1]}
57... Rb8 {[%clk 0:00:14.7]} 58. Rb3 {[%clk 0:00:52.6]} 58... Ka5 {[%clk
0:00:13.4]} 59. g8=Q {[%clk 0:00:49.5]} 59... Rxg8 {[%clk 0:00:13.5]} 60. Kxg8
{[%clk 0:00:50.4]} 60... Ka4 {[%clk 0:00:14.4]} 61. Re3 {[%clk 0:00:49.8]} 61...
b3 {[%clk 0:00:15.1]} 62. Rxb3 {[%clk 0:00:44.4]} 62... Kxb3 {[%clk 0:00:15.1]}
1/2-1/2

[Event "Early-Titled-Tuesday-Blitz-February-06-2024"]
[Site "Chess.com"]
[Date "2024.02.06"]
[Round "3"]
[White "Al_Shima"]
[Black "GMT4114"]
[Result "1-0"]
[WhiteElo "2337"]
[BlackElo "1964"]
[TimeControl "180+1"]
[EndTime "8:28:12 PST"]
[Termination "Al_Shima won on time"]

1. e4 {[%clk 0:02:56.9]} 1... e6 {[%clk 0:03:00.4]} 2. Nc3 {[%clk 0:02:56.3]}
2... d5 {[%clk 0:03:00.4]} 3. Nf3 {[%clk 0:02:57.2]} 3... d4 {[%clk 0:02:59.5]}
4. Ne2 {[%clk 0:02:57.2]} 4... c5 {[%clk 0:03:00.2]} 5. c3 {[%clk 0:02:57.6]}
5... Nc6 {[%clk 0:02:58.4]} 6. d3 {[%clk 0:02:53.9]} 6... e5 {[%clk 0:02:54]} 7.
g3 {[%clk 0:02:47.6]} 7... Bg4 {[%clk 0:02:48.3]} 8. Bg2 {[%clk 0:02:47.7]} 8...
Qd7 {[%clk 0:02:44.6]} 9. h3 {[%clk 0:02:46.6]} 9... Bxf3 {[%clk 0:02:30.4]} 10.
Bxf3 {[%clk 0:02:47.5]} 10... Bd6 {[%clk 0:02:09.6]} 11. g4 {[%clk 0:02:44.7]}
11... Nge7 {[%clk 0:02:08.1]} 12. Ng3 {[%clk 0:02:39.9]} 12... g6 {[%clk
0:01:44.7]} 13. g5 {[%clk 0:02:36.8]} 13... Nd8 {[%clk 0:01:24.4]} 14. h4 {[%clk
0:02:30.6]} 14... Ne6 {[%clk 0:01:24.4]} 15. Bg4 {[%clk 0:02:30.8]} 15... Nc6
{[%clk 0:01:21.5]} 16. Qe2 {[%clk 0:01:41.6]} 16... Qe7 {[%clk 0:01:21.5]} 17.
Qf3 {[%clk 0:01:24.9]} 17... O-O-O {[%clk 0:01:12.9]} 18. Bd2 {[%clk 0:01:20.2]}
18... Kb8 {[%clk 0:01:11.9]} 19. c4 {[%clk 0:01:19]} 19... Rdf8 {[%clk
0:01:10.2]} 20. Ne2 {[%clk 0:00:43.2]} 20... f6 {[%clk 0:00:56.9]} 21. Qh3
{[%clk 0:00:39.1]} 21... Ncd8 {[%clk 0:00:50.4]} 22. gxf6 {[%clk 0:00:27.4]}
22... Qxf6 {[%clk 0:00:50.1]} 23. Rf1 {[%clk 0:00:23.9]} 23... Rf7 {[%clk
0:00:29.5]} 24. O-O-O {[%clk 0:00:23.6]} 24... Rhf8 {[%clk 0:00:29.5]} 25. h5
{[%clk 0:00:19.4]} 25... g5 {[%clk 0:00:26.2]} 26. Bf5 {[%clk 0:00:13.2]} 26...
h6 {[%clk 0:00:26.3]} 27. Bg6 {[%clk 0:00:09.8]} 27... Rc7 {[%clk 0:00:24.3]}
28. Ng3 {[%clk 0:00:09.7]} 28... Nf4 {[%clk 0:00:20.8]} 29. Qg4 {[%clk 0:00:06]}
29... Nde6 {[%clk 0:00:20.6]} 30. Bxf4 {[%clk 0:00:04.1]} 30... Qxf4+ {[%clk
0:00:17.4]} 31. Qxf4 {[%clk 0:00:03.7]} 31... Rxf4 {[%clk 0:00:17.5]} 32. Nf5
{[%clk 0:00:03.9]} 32... Ng7 {[%clk 0:00:16]} 33. Nxd6 {[%clk 0:00:03.5]} 33...
Rf3 {[%clk 0:00:12.2]} 34. Nf5 {[%clk 0:00:03.9]} 34... Nxf5 {[%clk 0:00:11.5]}
35. exf5 {[%clk 0:00:04.1]} 35... Kc8 {[%clk 0:00:09.2]} 36. Rfe1 {[%clk
0:00:04.1]} 36... Re7 {[%clk 0:00:07.7]} 37. Re2 {[%clk 0:00:04.5]} 37... Kd8
{[%clk 0:00:07.4]} 38. Rde1 {[%clk 0:00:05]} 1-0